fUSD/lending_fUSD_20260621
["ID","MTS","AMOUNT","RATE_DAILY","PERIOD"]
[425838726,1781971839000,-500.0,0.00021244,2]
[425838717,1781971839000,-151.0,0.00021244,2]
[425838722,1781971839000,-151.0,0.00021244,2]
[425838713,1781971839000,-1165.20746569,0.00021244,2]
[425838711,1781971839000,-174.61919141,0.00021244,2]
[425838720,1781971839000,-151.0,0.00021244,2]
[425838837,1781971840000,-500.0,0.00021244,2]
[425838827,1781971840000,-500.0,0.00021244,2]
[425838831,1781971840000,-151.0,0.00021244,2]
[425838839,1781971840000,-152.0,0.00021244,2]
[425838845,1781971840000,-152.0,0.00021244,2]
[425838847,1781971840000,-151.0,0.00021244,2]
[425838841,1781971840000,-151.0,0.00021244,2]
[425838843,1781971840000,-151.0,0.00021244,2]
[425838855,1781971840000,-151.0,0.00021299,2]
[425838852,1781971840000,-151.0,0.00021244,2]
[425838851,1781971840000,-151.0,0.00021244,2]
[425838853,1781971840000,-1252.83,0.00021273,2]
[425838881,1781971840000,-151.0,0.00021519,2]
[425838878,1781971840000,-916.97,0.000215,2]
[425838833,1781971840000,-151.0,0.00021244,2]
[425838876,1781971840000,-151.0,0.00021464,2]
[425838849,1781971840000,-151.0,0.00021244,2]
[425838835,1781971840000,-500.0,0.00021244,2]
[425838806,1781971840000,-500.0,0.00021244,2]
[425838821,1781971840000,-151.0,0.00021244,2]
[425838883,1781971840000,-151.0,0.00021574,2]
[425838798,1781971840000,-151.0,0.00021244,2]
[425838792,1781971840000,-152.0,0.00021244,2]
[425838794,1781971840000,-500.0,0.00021244,2]
[425838796,1781971840000,-500.0,0.00021244,2]
[425838800,1781971840000,-151.0,0.00021244,2]
[425838802,1781971840000,-152.0,0.00021244,2]
[425838829,1781971840000,-152.0,0.00021244,2]
[425838804,1781971840000,-500.0,0.00021244,2]
[425838810,1781971840000,-152.0,0.00021244,2]
[425838823,1781971840000,-151.0,0.00021244,2]
[425838815,1781971840000,-500.0,0.00021244,2]
[425838813,1781971840000,-500.0,0.00021244,2]
[425838825,1781971840000,-500.0,0.00021244,2]
[425838817,1781971840000,-151.0,0.00021244,2]
[425838819,1781971840000,-152.0,0.00021244,2]
[425838808,1781971840000,-151.0,0.00021244,2]
[425838867,1781971840000,-151.0,0.00021354,2]
[425838885,1781971840000,-151.0,0.00021629,2]
[425838951,1781971840000,-500.0,0.00021999,2]
[425838935,1781971840000,-1890.75335065,0.000219,2]
[425838920,1781971840000,-2157.14243826,0.00021792,2]
[425838963,1781971840000,-85088.21686017,0.00022,4]
[425838918,1781971840000,-152.65821072,0.00021792,2]
[425838937,1781971840000,-10357.0117281,0.000219,2]
[425838941,1781971840000,-5000.0,0.00021918,2]
[425838939,1781971840000,-500.0,0.00021917,2]
[425838925,1781971840000,-2576.0,0.000218,2]
[425838954,1781971840000,-500.0,0.00021999,2]
[425838953,1781971840000,-500.0,0.00021999,2]
[425838957,1781971840000,-500.0,0.00021999,2]
[425838948,1781971840000,-500.0,0.00021999,2]
[425838946,1781971840000,-300.0,0.00021999,2]
[425838959,1781971840000,-1537.0,0.00022,5]
[425838961,1781971840000,-2212.8319751,0.00022,2]
[425838864,1781971840000,-790.14847019,0.0002132,2]
[425838943,1781971840000,-500.0,0.00021955,2]
[425838932,1781971840000,-163.0,0.0002188,2]
[425838923,1781971840000,-151.0,0.00021794,2]
[425838928,1781971840000,-1783.53,0.00021836,2]
[425838887,1781971840000,-4166.7345349,0.00021679,2]
[425838869,1781971840000,-151.0,0.00021409,2]
[425838871,1781971840000,-3296.77438752,0.00021434,2]
[425838874,1781971840000,-505.0,0.00021463,3]
[425838930,1781971840000,-163.0,0.0002188,2]
[425838905,1781971840000,-205.02,0.00021757,2]
[425838903,1781971840000,-5200.49,0.00021757,2]
[425838907,1781971840000,-350.0,0.00021758,4]
[425838900,1781971840000,-153.16,0.0002175,7]
[425838892,1781971840000,-222.24,0.00021691,2]
[425838889,1781971840000,-151.0,0.00021684,2]
[425838896,1781971840000,-1599.0,0.00021736,5]
[425838898,1781971840000,-151.0,0.00021739,2]
[425838909,1781971840000,-350.0,0.00021758,4]
[425838911,1781971840000,-200.0,0.00021792,2]
[425838913,1781971840000,-181.08010149,0.00021792,2]
[425838894,1781971840000,-150.05156038,0.00021706,2]
[425838916,1781971840000,-151.0,0.00021792,2]
[425839214,1781971842000,-788.99456211,0.000225,2]
[425839237,1781971842000,-505.0,0.00022927,4]
[425839233,1781971842000,-152.65821072,0.00022888,2]
[425839235,1781971842000,-2319.72410669,0.00022888,2]
[425839222,1781971842000,-20873.0,0.00022691,2]
[425839227,1781971842000,-194.72792766,0.00022888,2]
[425839225,1781971842000,-200.0,0.00022888,2]
[425839220,1781971842000,-183.92486294,0.00022588,2]
[425839230,1781971842000,-151.0,0.00022888,2]
[425839239,1781971842000,-163.0,0.00023,2]
[425839261,1781971842000,-500.0,0.00023,3]
[425839241,1781971842000,-220.0,0.00023,2]
[425839243,1781971842000,-287.0,0.00023,2]
[425839253,1781971842000,-152.31089019,0.00023,2]
[425839255,1781971842000,-941.0,0.00023,2]
[425839249,1781971842000,-916.97,0.00023,7]
[425839245,1781971842000,-255.0,0.00023,2]
[425839257,1781971842000,-500.0,0.00023,3]
[425839263,1781971842000,-238.94107277,0.00023,3]
[425839259,1781971842000,-228.0,0.00023,2]
[425839217,1781971842000,-150.0,0.0002254,2]
[425839251,1781971842000,-183.0,0.00023,2]
[425839199,1781971842000,-384.16976804,0.000224,2]
[425839149,1781971842000,-158.0,0.00022,2]
[425839211,1781971842000,-642.24,0.00022466,2]
[425839143,1781971842000,-602.65,0.00016932,2]
[425839152,1781971842000,-220.0,0.00022,2]
[425839158,1781971842000,-156.0,0.00022,2]
[425839156,1781971842000,-255.0,0.00022,2]
[425839154,1781971842000,-287.0,0.00022,2]
[425839145,1781971842000,-293027.81941279,0.00022,4]
[425839147,1781971842000,-300.0,0.00022,2]
[425839160,1781971842000,-183.0,0.00022,2]
[425839165,1781971842000,-228.0,0.00022,2]
[425839167,1781971842000,-1127.3,0.00022,2]
[425839196,1781971842000,-319.4,0.00022353,2]
[425839172,1781971842000,-565.65000294,0.00022157,2]
[425839174,1781971842000,-222.22,0.00022204,2]
[425839176,1781971842000,-200.0,0.0002234,2]
[425839169,1781971842000,-244.89608328,0.0002211,2]
[425839182,1781971842000,-151.0,0.0002234,2]
[425839179,1781971842000,-187.78006524,0.0002234,2]
[425839186,1781971842000,-152.65821072,0.0002234,2]
[425839190,1781971842000,-2236.95670847,0.0002234,2]
[425839193,1781971842000,-197.25,0.00022344,2]
[425839203,1781971842000,-247.06539881,0.00022463,4]
[425839206,1781971842000,-1372.62572948,0.00022465,2]
[425839163,1781971842000,-941.0,0.00022,2]
[425839270,1781971842000,-350.0,0.00023188,4]
[425839247,1781971842000,-158.0,0.00023,2]
[425839274,1781971842000,-1783.53,0.00023205,2]
[425839322,1781971842000,-287.0,0.00024,2]
[425839324,1781971842000,-255.0,0.00024,2]
[425839335,1781971842000,-1026.83,0.00024174,2]
[425839312,1781971842000,-500.0,0.00023999,2]
[425839326,1781971842000,-183.0,0.00024,2]
[425839328,1781971842000,-941.0,0.00024,2]
[425839330,1781971842000,-228.0,0.00024,2]
[425839337,1781971842000,-20873.0,0.00024174,2]
[425839340,1781971842000,-319.4,0.00024324,2]
[425839346,1781971842000,-200.0,0.00024532,2]
[425839334,1781971842000,-189.0,0.0002405,10]
[425839344,1781971842000,-505.0,0.0002439,6]
[425839358,1781971842000,-1127.3,0.00024646,7]
[425839348,1781971842000,-217.15233878,0.00024532,2]
[425839360,1781971842000,-156.80320966,0.00024657,2]
[425839350,1781971842000,-152.65821072,0.00024532,2]
[425839356,1781971842000,-1783.53,0.00024575,2]
[425839353,1781971842000,-350.0,0.0002454,5]
[425839351,1781971842000,-2586.85809042,0.00024532,2]
[425839354,1781971842000,-350.0,0.0002454,5]
[425839364,1781971842000,-1000.0,0.00024658,2]
[425839278,1781971842000,-250.0,0.00023288,2]
[425839342,1781971842000,-150.0,0.00024333,2]
[425839332,1781971842000,-2000.0,0.00024,7]
[425839362,1781971842000,-250.0,0.00024658,4]
[425839316,1781971842000,-1042.6760643,0.00024,2]
[425839320,1781971842000,-220.0,0.00024,2]
[425839272,1781971842000,-350.0,0.00023188,4]
[425839265,1781971842000,-200.0,0.00023,3]
[425839276,1781971842000,-150.0,0.0002326,21]
[425839282,1781971842000,-200.0,0.00023436,2]
[425839280,1781971842000,-153.40289693,0.00023336,2]
[425839284,1781971842000,-201.93286098,0.00023436,2]
[425839302,1781971842000,-747.80937859,0.00023983,2]
[425839300,1781971842000,-599.60298507,0.00023983,2]
[425839294,1781971842000,-249.0,0.00023502,2]
[425839295,1781971842000,-150.0,0.00023667,2]
[425839267,1781971842000,-1184.78,0.00023187,2]
[425839286,1781971842000,-153.14864244,0.00023436,2]
[425839304,1781971842000,-200.0,0.00023984,2]
[425839288,1781971842000,-152.65821072,0.00023436,2]
[425839306,1781971842000,-209.40437684,0.00023984,2]
[425839292,1781971842000,-790.14847019,0.0002346,2]
[425839290,1781971842000,-2405.55389863,0.00023436,2]
[425839308,1781971842000,-152.65821072,0.00023984,2]
[425839310,1781971842000,-2494.55939288,0.00023984,2]
[425839314,1781971842000,-500.0,0.00023999,2]
[425839318,1781971842000,-3600.0,0.00024,2]
[425839297,1781971842000,-162.727717,0.00023744,7]
[425839455,1781971843000,-266.0,0.00025,2]
[425839453,1781971843000,-299.0,0.00025,2]
[425839450,1781971843000,-221.0,0.00025,2]
[425839434,1781971843000,-121517.05410674,0.00025,5]
[425839445,1781971843000,-3361.78042264,0.00025,2]
[425839443,1781971843000,-1609942.74531468,0.00025,2]
[425839436,1781971843000,-254978.51385732,0.00025,2]
[425839448,1781971843000,-435.52698941,0.00025,2]
[425839457,1781971843000,-500.0,0.00025,2]
[425839472,1781971843000,-164.09,0.00025,2]
[425839462,1781971843000,-952.0,0.00025,2]
[425839460,1781971843000,-187.0,0.00025,2]
[425839469,1781971843000,-164.09,0.00025,2]
[425839467,1781971843000,-164.09,0.00025,2]
[425839474,1781971843000,-150.31,0.00025019,7]
[425839484,1781971843000,-225.18697532,0.0002508,2]
[425839486,1781971843000,-152.65821072,0.0002508,2]
[425839476,1781971843000,-3560.0,0.00025025,2]
[425839488,1781971843000,-2682.57183977,0.0002508,2]
[425839432,1781971843000,-500.0,0.00024999,2]
[425839465,1781971843000,-246.0,0.00025,2]
[425839429,1781971843000,-500.0,0.00024999,2]
[425839395,1781971843000,-151.0,0.00024997,7]
[425839420,1781971843000,-500.0,0.00024999,2]
[425839366,1781971843000,-161.1,0.00024658,2]
[425839374,1781971843000,-150.0,0.0002485,2]
[425839373,1781971843000,-500.0,0.00024758,2]
[425839368,1781971843000,-150.31,0.00024658,2]
[425839370,1781971843000,-158.28,0.00024658,2]
[425839391,1781971843000,-1084.55434748,0.0002497,2]
[425839393,1781971843000,-151.0,0.00024997,7]
[425839398,1781971843000,-151.0,0.00024997,7]
[425839387,1781971843000,-633.54296752,0.000249,2]
[425839402,1781971843000,-316.1320903,0.00024999,10]
[425839389,1781971843000,-300.0,0.000249,9]
[425839400,1781971843000,-151.0,0.00024997,7]
[425839406,1781971843000,-500.0,0.00024999,2]
[425839404,1781971843000,-500.0,0.00024999,2]
[425839409,1781971843000,-500.0,0.00024999,2]
[425839413,1781971843000,-575.84,0.00024999,2]
[425839411,1781971843000,-500.0,0.00024999,2]
[425839425,1781971843000,-500.0,0.00024999,2]
[425839418,1781971843000,-500.0,0.00024999,2]
[425839422,1781971843000,-500.0,0.00024999,2]
[425839416,1781971843000,-500.0,0.00024999,2]
[425839427,1781971843000,-500.0,0.00024999,2]
[425839492,1781971843000,-1234.751,0.000251,2]
[425839490,1781971843000,-916.97,0.000251,7]
[425839482,1781971843000,-1360.0,0.00025025,2]
[425839547,1781971843000,-161.384875,0.00026404,7]
[425839551,1781971843000,-475.11461,0.00026485,2]
[425839549,1781971843000,-150.31,0.00026467,30]
[425839557,1781971843000,-399.910837,0.00026513,2]
[425839558,1781971843000,-150.0,0.00026513,5]
[425839553,1781971843000,-50000.0,0.000265,7]
[425839559,1781971843000,-621.78829552,0.00026722,2]
[425839555,1781971843000,-50000.0,0.000265,5]
[425839556,1781971843000,-40775.62,0.000265,7]
[425839562,1781971843000,-775.4783256,0.00026722,2]
[425839581,1781971843000,-316.5,0.00027,2]
[425839566,1781971843000,-150.31,0.00026829,2]
[425839564,1781971843000,-1946.4719044,0.00026724,2]
[425839579,1781971843000,-248.104623,0.00026924,7]
[425839575,1781971843000,-150.0,0.0002685,2]
[425839584,1781971843000,-350.0,0.00027029,8]
[425839569,1781971843000,-250.01,0.00026849,8]
[425839571,1781971843000,-250.01,0.00026849,8]
[425839586,1781971843000,-350.0,0.00027029,8]
[425839573,1781971843000,-249.8,0.00026849,8]
[425839494,1781971843000,-6081.0,0.000251,2]
[425839544,1781971843000,-150.0,0.000263,2]
[425839539,1781971843000,-2884.75459676,0.00026176,2]
[425839577,1781971843000,-6514.82701255,0.00026913,2]
[425839542,1781971843000,-319.4,0.00026296,2]
[425839478,1781971843000,-383.0,0.00025025,2]
[425839535,1781971843000,-150.31,0.00026105,7]
[425839480,1781971843000,-1276.0,0.00025025,2]
[425839496,1781971843000,-215.0,0.000251,2]
[425839498,1781971843000,-183.92486294,0.0002515,2]
[425839509,1781971843000,-152.65821076,0.00025628,2]
[425839517,1781971843000,-350.0,0.00025819,7]
[425839511,1781971843000,-150.31,0.00025743,2]
[425839515,1781971843000,-1026.83,0.00025786,2]
[425839519,1781971843000,-350.0,0.00025819,7]
[425839505,1781971843000,-223.97698875,0.00025628,2]
[425839513,1781971843000,-1252.83,0.00025786,2]
[425839507,1781971843000,-2781.82699784,0.00025628,2]
[425839537,1781971843000,-1000.0,0.0002617,2]
[425839528,1781971843000,-150.0,0.00026093,2]
[425839526,1781971843000,-250.0,0.00026027,6]
[425839533,1781971843000,-312.0,0.000261,2]
[425839530,1781971843000,-3108.0,0.000261,2]
[425839524,1781971843000,-158.28,0.00026027,7]
[425839503,1781971843000,-1184.78,0.00025505,2]
[425839500,1781971843000,-150.31,0.00025381,30]
[425839522,1781971843000,-505.0,0.00025854,7]
[425839675,1781971844000,-150.31,0.00027552,30]
[425839640,1781971844000,-11555.16,0.00027397,10]
[425839635,1781971844000,-8091.15,0.00027397,10]
[425839653,1781971844000,-280.53,0.000274,7]
[425839656,1781971844000,-1000.0,0.000274,2]
[425839667,1781971844000,-2576.0,0.000275,7]
[425839658,1781971844000,-1000.0,0.000274,2]
[425839660,1781971844000,-1210.62,0.000274,2]
[425839664,1781971844000,-500.0,0.000275,7]
[425839662,1781971844000,-50000.0,0.000275,5]
[425839671,1781971844000,-376.67,0.0002755,30]
[425839684,1781971844000,-175.87,0.00027566,2]
[425839669,1781971844000,-1151.82,0.0002755,30]
[425839678,1781971844000,-262.97,0.00027564,30]
[425839680,1781971844000,-905.21,0.00027564,30]
[425839693,1781971844000,-376.67,0.00027711,7]
[425839689,1781971844000,-3739.01416471,0.00027611,2]
[425839682,1781971844000,-248.89,0.00027565,30]
[425839701,1781971844000,-644.93,0.000278,30]
[425839698,1781971844000,-183.92486294,0.00027713,2]
[425839687,1781971844000,-150.0,0.00027574,5]
[425839696,1781971844000,-418.61,0.00027711,7]
[425839649,1781971844000,-868.47,0.000274,2]
[425839673,1781971844000,-418.61,0.0002755,30]
[425839642,1781971844000,-250.0,0.00027397,8]
[425839590,1781971844000,-1044.97314508,0.00027091,2]
[425839647,1781971844000,-150.0,0.00027398,2]
[425839691,1781971844000,-1151.82,0.00027711,7]
[425839588,1781971844000,-304.600796,0.00027036,7]
[425839594,1781971844000,-150.31,0.0002719,7]
[425839592,1781971844000,-1044.97314508,0.00027105,2]
[425839597,1781971844000,-916.97,0.000272,7]
[425839603,1781971844000,-152.0,0.00027273,3]
[425839599,1781971844000,-6514.82701255,0.0002721,2]
[425839605,1781971844000,-1044.97314508,0.00027288,2]
[425839607,1781971844000,-1127.3,0.00027292,7]
[425839601,1781971844000,-3739.01416471,0.00027263,2]
[425839609,1781971844000,-505.0,0.00027317,9]
[425839613,1781971844000,-318.011416,0.0002735,7]
[425839616,1781971844000,-3739.01416471,0.00027366,2]
[425839611,1781971844000,-172.66488874,0.00027329,2]
[425839618,1781971844000,-1000.0,0.0002737,2]
[425839620,1781971844000,-158.28,0.00027397,30]
[425839631,1781971844000,-299.54367018,0.00027397,2]
[425839626,1781971844000,-759.39688748,0.00027397,2]
[425839622,1781971844000,-199.90844487,0.00027397,2]
[425839624,1781971844000,-3000.0,0.00027397,2]
[425839628,1781971844000,-1500.0,0.00027397,2]
[425839633,1781971844000,-161.1,0.00027397,2]
[425839651,1781971844000,-1302.7,0.000274,2]
[425839637,1781971844000,-13866.19,0.00027397,10]
[425839700,1781971844000,-173.59,0.00027729,2]
[425839644,1781971844000,-5139.48308962,0.00027397,2]
[425839707,1781971844000,-248.89,0.0002785,7]
[425839814,1781971844000,-500.0,0.00028356,60]
[425839759,1781971844000,-669389.89120957,0.00028081,7]
[425839772,1781971844000,-262.97,0.00028135,2]
[425839774,1781971844000,-905.21,0.00028135,2]
[425839779,1781971844000,-350.0,0.00028174,10]
[425839796,1781971844000,-1000.0,0.0002827,2]
[425839783,1781971844000,-1151.82,0.00028194,7]
[425839777,1781971844000,-248.89,0.00028136,2]
[425839781,1781971844000,-350.0,0.00028174,10]
[425839785,1781971844000,-376.67,0.00028194,7]
[425839787,1781971844000,-418.61,0.00028194,7]
[425839789,1781971844000,-4166.7345349,0.00028233,2]
[425839794,1781971844000,-611.84051914,0.0002827,2]
[425839792,1781971844000,-319.4,0.00028267,2]
[425839798,1781971844000,-1581.0,0.00028289,10]
[425839800,1781971844000,-765.0,0.00028292,10]
[425839803,1781971844000,-339.8,0.00028355,2]
[425839805,1781971844000,-1151.82,0.00028355,2]
[425839819,1781971844000,-175.87,0.00028399,7]
[425839807,1781971844000,-376.67,0.00028355,2]
[425839809,1781971844000,-418.61,0.00028355,2]
[425839817,1781971844000,-500.0,0.00028356,60]
[425839811,1781971844000,-517.21813469,0.00028356,60]
[425839761,1781971844000,-11963.23845367,0.00028081,7]
[425839770,1781971844000,-162.88,0.0002813,7]
[425839703,1781971844000,-262.97,0.00027849,7]
[425839757,1781971844000,-200.0,0.00028074,2]
[425839713,1781971844000,-376.67,0.00027872,2]
[425839705,1781971844000,-905.21,0.00027849,7]
[425839711,1781971844000,-1151.82,0.00027872,2]
[425839709,1781971844000,-15000.0,0.00027856,2]
[425839725,1781971844000,-8800.74,0.00028,3]
[425839717,1781971844000,-280.53,0.000279,7]
[425839715,1781971844000,-418.61,0.00027872,2]
[425839727,1781971844000,-216.28381402,0.00028,10]
[425839722,1781971844000,-3000.0,0.00027945,2]
[425839720,1781971844000,-340.0,0.00027918,2]
[425839732,1781971844000,-3560.0,0.00028025,2]
[425839729,1781971844000,-2000.0,0.00028,7]
[425839755,1781971844000,-200.0,0.00028074,2]
[425839743,1781971844000,-376.67,0.00028033,30]
[425839734,1781971844000,-383.0,0.00028025,2]
[425839741,1781971844000,-1151.82,0.00028033,30]
[425839739,1781971844000,-1360.0,0.00028025,2]
[425839750,1781971844000,-224.9726958,0.00028071,2]
[425839748,1781971844000,-162.83,0.00028047,2]
[425839746,1781971844000,-418.61,0.00028033,30]
[425839763,1781971844000,-1229.0,0.000281,2]
[425839765,1781971844000,-6081.0,0.000281,2]
[425839768,1781971844000,-215.0,0.000281,2]
[425839752,1781971844000,-200.0,0.00028073,2]
[425839737,1781971844000,-1276.0,0.00028025,2]
[425839868,1781971845000,-500.0,0.00028493,2]
[425839865,1781971845000,-500.0,0.00028493,2]
[425839866,1781971845000,-500.0,0.00028493,2]
[425839859,1781971845000,-618.78572313,0.00028493,2]
[425839858,1781971845000,-500.0,0.00028493,2]
[425839862,1781971845000,-500.0,0.00028493,2]
[425839861,1781971845000,-500.0,0.00028493,2]
[425839857,1781971845000,-151.49636419,0.00028493,2]
[425839869,1781971845000,-500.0,0.00028493,2]
[425839856,1781971845000,-500.0,0.00028493,2]
[425839876,1781971845000,-150.0,0.00028493,2]
[425839871,1781971845000,-500.0,0.00028493,2]
[425839867,1781971845000,-500.0,0.00028493,2]
[425839875,1781971845000,-500.0,0.00028493,2]
[425839874,1781971845000,-500.0,0.00028493,2]
[425839870,1781971845000,-500.0,0.00028493,2]
[425839877,1781971845000,-169.53724475,0.00028493,2]
[425839879,1781971845000,-150.0,0.00028493,2]
[425839880,1781971845000,-150.0,0.00028493,2]
[425839881,1781971845000,-500.0,0.00028493,2]
[425839886,1781971845000,-150.0,0.00028493,2]
[425839882,1781971845000,-150.0,0.00028493,2]
[425839860,1781971845000,-150.0,0.00028493,2]
[425839872,1781971845000,-500.0,0.00028493,2]
[425839864,1781971845000,-500.0,0.00028493,2]
[425839840,1781971845000,-187.39369035,0.00028493,2]
[425839855,1781971845000,-202.6298933,0.00028493,2]
[425839821,1781971845000,-280.53,0.000284,7]
[425839829,1781971845000,-262.97,0.00028421,30]
[425839827,1781971845000,-200.13817817,0.0002842,2]
[425839831,1781971845000,-905.21,0.00028421,30]
[425839836,1781971845000,-150.0,0.00028493,2]
[425839833,1781971845000,-248.89,0.00028422,30]
[425839835,1781971845000,-500.0,0.00028492,7]
[425839834,1781971845000,-200.0,0.00028487,2]
[425839837,1781971845000,-167.75704659,0.00028493,2]
[425839839,1781971845000,-150.0,0.00028493,2]
[425839850,1781971845000,-500.0,0.00028493,2]
[425839841,1781971845000,-500.0,0.00028493,2]
[425839884,1781971845000,-150.0,0.00028493,2]
[425839838,1781971845000,-150.0,0.00028493,2]
[425839845,1781971845000,-500.0,0.00028493,2]
[425839847,1781971845000,-500.0,0.00028493,2]
[425839848,1781971845000,-500.0,0.00028493,2]
[425839844,1781971845000,-500.0,0.00028493,2]
[425839846,1781971845000,-552.67835172,0.00028493,2]
[425839842,1781971845000,-500.0,0.00028493,2]
[425839843,1781971845000,-500.0,0.00028493,2]
[425839851,1781971845000,-500.0,0.00028493,2]
[425839853,1781971845000,-500.0,0.00028493,2]
[425839863,1781971845000,-500.0,0.00028493,2]
[425839887,1781971845000,-500.0,0.00028493,2]
[425839873,1781971845000,-568.0,0.00028493,2]
[425839883,1781971845000,-500.0,0.00028493,2]
[425839927,1781971845000,-500.0,0.00028493,2]
[425839919,1781971845000,-150.0,0.00028493,2]
[425839928,1781971845000,-500.0,0.00028493,2]
[425839918,1781971845000,-150.0,0.00028493,2]
[425839916,1781971845000,-150.0,0.00028493,2]
[425839922,1781971845000,-150.0,0.00028493,2]
[425839926,1781971845000,-500.0,0.00028493,2]
[425839921,1781971845000,-150.0,0.00028493,2]
[425839923,1781971845000,-150.0,0.00028493,2]
[425839920,1781971845000,-150.0,0.00028493,2]
[425839925,1781971845000,-500.0,0.00028493,2]
[425839917,1781971845000,-150.0,0.00028493,2]
[425839924,1781971845000,-500.0,0.00028493,2]
[425839936,1781971845000,-150.0,0.00028493,2]
[425839930,1781971845000,-500.0,0.00028493,2]
[425839931,1781971845000,-500.0,0.00028493,2]
[425839932,1781971845000,-500.0,0.00028493,2]
[425839933,1781971845000,-500.0,0.00028493,2]
[425839940,1781971845000,-218.23235569,0.00028493,2]
[425839934,1781971845000,-500.0,0.00028493,2]
[425839885,1781971845000,-500.0,0.00028493,2]
[425839939,1781971845000,-500.0,0.00028493,2]
[425839937,1781971845000,-500.0,0.00028493,2]
[425839938,1781971845000,-500.0,0.00028493,2]
[425839929,1781971845000,-500.0,0.00028493,2]
[425839912,1781971845000,-500.0,0.00028493,2]
[425839935,1781971845000,-500.0,0.00028493,2]
[425839914,1781971845000,-150.0,0.00028493,2]
[425839878,1781971845000,-150.0,0.00028493,2]
[425839913,1781971845000,-500.0,0.00028493,2]
[425839889,1781971845000,-500.0,0.00028493,2]
[425839901,1781971845000,-500.0,0.00028493,2]
[425839891,1781971845000,-500.0,0.00028493,2]
[425839892,1781971845000,-150.0,0.00028493,2]
[425839890,1781971845000,-150.0,0.00028493,2]
[425839902,1781971845000,-150.0,0.00028493,2]
[425839893,1781971845000,-500.0,0.00028493,2]
[425839896,1781971845000,-150.0,0.00028493,2]
[425839897,1781971845000,-150.0,0.00028493,2]
[425839894,1781971845000,-500.0,0.00028493,2]
[425839888,1781971845000,-150.0,0.00028493,2]
[425839899,1781971845000,-500.0,0.00028493,2]
[425839898,1781971845000,-500.0,0.00028493,2]
[425839911,1781971845000,-150.0,0.00028493,2]
[425839915,1781971845000,-404.0,0.00028493,2]
[425839909,1781971845000,-150.0,0.00028493,2]
[425839910,1781971845000,-500.0,0.00028493,2]
[425839908,1781971845000,-500.0,0.00028493,2]
[425839907,1781971845000,-150.0,0.00028493,2]
[425839906,1781971845000,-500.0,0.00028493,2]
[425839903,1781971845000,-500.0,0.00028493,2]
[425839900,1781971845000,-150.0,0.00028493,2]
[425839904,1781971845000,-150.0,0.00028493,2]
[425839967,1781971846000,-3000.0,0.00028493,2]
[425839979,1781971846000,-418.61,0.00028516,30]
[425839976,1781971846000,-151.0,0.000285,7]
[425839975,1781971846000,-637504.95148443,0.000285,2]
[425839968,1781971846000,-36334.43341224,0.000285,2]
[425839980,1781971846000,-164.96,0.00028596,11]
[425839966,1781971846000,-150.0,0.00028493,2]